fUSD/lending_fUSD_20240812
["ID","MTS","AMOUNT","RATE_DAILY","PERIOD"]
[334712455,1723497042851,-151.0,0.000139,2]
[334712457,1723497042860,-161.36575,0.000139,2]
[334712459,1723497042869,-312.110361,0.000139,2]
[334712461,1723497042878,-161.36575,0.000139,2]
[334712463,1723497042887,-312.110361,0.000139,2]
[334712464,1723497042896,-151.0,0.000139,2]
[334712465,1723497042905,-151.0,0.000139,2]
[334712466,1723497042914,-151.0,0.000139,2]
[334712467,1723497042923,-151.0,0.000139,2]
[334712468,1723497042932,-277.454394,0.000139,2]
[334712469,1723497042942,-277.454394,0.000139,2]
[334712470,1723497042951,-392.168585,0.000139,2]
[334712472,1723497042960,-151.0,0.000139,2]
[334712473,1723497042969,-151.0,0.000139,2]
[334712475,1723497042978,-392.168585,0.000139,2]
[334712477,1723497042987,-151.0,0.000139,2]
[334712479,1723497042999,-270.357714,0.000139,2]
[334712482,1723497043010,-151.0,0.000139,2]
[334712483,1723497043019,-213.232497,0.000139,2]
[334712485,1723497043028,-166.213522,0.000139,2]
[334712486,1723497043038,-476.526216,0.000139,2]
[334712487,1723497043047,-476.526216,0.000139,2]
[334712488,1723497043057,-476.526216,0.000139,2]
[334712490,1723497043066,-476.526216,0.000139,2]
[334712492,1723497043076,-151.0,0.000139,2]
[334712494,1723497043088,-151.0,0.000139,2]
[334712496,1723497043099,-151.0,0.000139,2]
[334712498,1723497043107,-151.0,0.000139,2]
[334712500,1723497043117,-151.0,0.000139,2]
[334712502,1723497043126,-151.0,0.000139,2]
[334712504,1723497043135,-151.0,0.000139,2]
[334712506,1723497043145,-151.0,0.000139,2]
[334712508,1723497043154,-363.764169,0.000139,2]
[334712510,1723497043165,-363.764169,0.000139,2]
[334712513,1723497043175,-363.764169,0.000139,2]
[334712515,1723497043185,-363.764169,0.000139,2]
[334712516,1723497043194,-151.0,0.000139,2]
[334712519,1723497043204,-151.0,0.000139,2]
[334712520,1723497043213,-151.0,0.000139,2]
[334712522,1723497043222,-151.0,0.000139,2]
[334712524,1723497043231,-151.0,0.000139,2]
[334712526,1723497043240,-420.580105,0.000139,2]
[334712528,1723497043249,-151.0,0.000139,2]
[334712530,1723497043258,-420.580105,0.000139,2]
[334712532,1723497043267,-227.84383,0.000139,2]
[334712534,1723497043276,-151.0,0.000139,2]
[334712536,1723497043285,-151.0,0.000139,2]
[334712538,1723497043294,-151.0,0.000139,2]
[334712539,1723497043303,-334.350081,0.000139,2]
[334712541,1723497043313,-334.350081,0.000139,2]
[334712543,1723497043322,-151.0,0.000139,2]
[334712545,1723497043331,-151.0,0.000139,2]
[334712547,1723497043340,-277.593069,0.000139,2]
[334712549,1723497043349,-277.593069,0.000139,2]
[334712551,1723497043360,-151.0,0.000139,2]
[334712553,1723497043369,-151.0,0.000139,2]
[334712555,1723497043378,-151.0,0.000139,2]
[334712557,1723497043388,-260.624691,0.000139,2]
[334712559,1723497043397,-151.0,0.000139,2]
[334712561,1723497043407,-168.598719,0.000139,2]
[334712563,1723497043416,-168.598719,0.000139,2]
[334712565,1723497043425,-151.0,0.000139,2]
[334712567,1723497043435,-5039.606966,0.000139,2]
[334712569,1723497043444,-151.0,0.000139,2]
[334712571,1723497043454,-510.462519,0.000139,2]
[334712572,1723497043463,-5039.606966,0.000139,2]
[334712574,1723497043472,-1597.337465,0.000139,2]
[334712576,1723497043482,-187244.505599,0.000139,2]
[334712578,1723497043491,-510.462519,0.000139,2]
[334712580,1723497043500,-1597.337465,0.000139,2]
[334712582,1723497043510,-151.0,0.000139,2]
[334712584,1723497043519,-151.0,0.000139,2]
[334712586,1723497043528,-151.0,0.000139,2]
[334712588,1723497043538,-151.0,0.000139,2]
[334712590,1723497043547,-151.0,0.000139,2]
[334712592,1723497043556,-151.0,0.000139,2]
[334712594,1723497043567,-151.0,0.000139,2]
[334712596,1723497043578,-426.88961,0.000139,2]
[334712598,1723497043588,-426.88961,0.000139,2]
[334712600,1723497043598,-151.0,0.000139,2]
[334712602,1723497043608,-151.0,0.000139,2]
[334712604,1723497043617,-151.0,0.000139,2]
[334712606,1723497043628,-238.408484,0.000139,2]
[334712608,1723497043638,-151.0,0.000139,2]
[334712610,1723497043649,-151.0,0.000139,2]
[334712612,1723497043658,-151.0,0.000139,2]
[334712614,1723497043667,-151.0,0.000139,2]
[334712616,1723497043676,-151.0,0.000139,2]
[334712618,1723497043686,-151.0,0.000139,2]
[334712620,1723497043695,-151.0,0.000139,2]
[334712621,1723497043704,-151.0,0.000139,2]
[334712623,1723497043713,-151.0,0.000139,2]
[334712626,1723497043724,-151.0,0.000139,2]
[334712628,1723497043733,-151.0,0.000139,2]
[334712630,1723497043742,-151.0,0.000139,2]
[334712631,1723497043752,-150.0,0.00013948,2]
[334712634,1723497043763,-561.6,0.00013953,2]
[334712636,1723497043772,-533.79,0.00013973,2]
[334712638,1723497043781,-632.01,0.00013973,2]
[334712639,1723497043790,-266.91619313,0.00014,2]
[334712641,1723497043799,-2000.0,0.00014,2]
[334712643,1723497043809,-7885.972124,0.00014,2]
[334712645,1723497043817,-1000.0,0.00014,3]
[334712647,1723497043827,-650.0,0.00014,2]
[334712649,1723497043836,-151.0,0.00014,2]
[334712651,1723497043854,-264.499066,0.00014,2]
[334712653,1723497043864,-264.499066,0.00014,2]
[334712655,1723497043873,-151.0,0.00014,2]
[334712657,1723497043883,-255.459163,0.00014,2]
[334712659,1723497043892,-151.0,0.00014,2]
[334712661,1723497043902,-255.459163,0.00014,2]
[334712663,1723497043911,-151.0,0.00014,2]
[334712665,1723497043921,-161.36575,0.00014,2]
[334712667,1723497043931,-312.110361,0.00014,2]
[334712669,1723497043941,-161.36575,0.00014,2]
[334712671,1723497043951,-312.110361,0.00014,2]
[334712673,1723497043960,-151.0,0.00014,2]
[334712675,1723497043970,-151.0,0.00014,2]
[334712677,1723497043979,-151.0,0.00014,2]
[334712679,1723497043989,-151.0,0.00014,2]
[334712681,1723497044004,-392.168585,0.00014,2]
[334712683,1723497044014,-392.168585,0.00014,2]
[334712685,1723497044023,-150.0,0.00014,2]
[334712687,1723497044035,-426.17811518,0.00014041,2]
[334712689,1723497044044,-150.0,0.00014047,2]
[334712691,1723497044054,-150.0,0.00014104,2]
[334712693,1723497044063,-835.34,0.00014117,2]
[334712695,1723497044074,-152.7,0.00014169,2]
[334712697,1723497044084,-3000.0,0.0001419,2]
[334712699,1723497044096,-426.17811518,0.00014191,2]
[334712701,1723497044106,-150.0,0.00014191,2]
[334712702,1723497044116,-150.0,0.00014191,2]
[334712704,1723497044126,-150.0,0.00014204,2]
[334712706,1723497044135,-360.37,0.00014204,2]
[334712708,1723497044145,-300.0,0.00014204,2]
[334712710,1723497044154,-150.0,0.00014204,2]
[334712712,1723497044164,-150.0,0.00014204,2]
[334712714,1723497044172,-530.97,0.00014204,2]
[334712716,1723497044182,-2534.68772,0.00014247,2]
[334712718,1723497044192,-150.0,0.0001426,2]
[334712719,1723497044202,-150.0,0.00014263,2]
[334712721,1723497044212,-794.0,0.00014335,2]
[334712723,1723497044222,-794.0,0.00014335,2]
[334712725,1723497044232,-426.17811518,0.00014341,2]
[334712727,1723497044242,-1747.41,0.00014384,2]
[334712729,1723497044251,-150.0,0.00014417,2]
[334712731,1723497044260,-150.0,0.00014478,2]
[334712733,1723497044270,-426.17811518,0.00014491,2]
[334712735,1723497044280,-2000.0,0.000145,2]
[334712737,1723497044290,-2000.0,0.000145,2]
[334712739,1723497044299,-2000.0,0.000145,2]
[334712741,1723497044310,-150.0,0.000145,2]
[334712743,1723497044320,-160.0,0.00014514,2]
[334712745,1723497044329,-592.457813,0.00014525,2]
[334712747,1723497044340,-150.0,0.00014573,2]
[334712749,1723497044351,-426.17811518,0.00014641,2]
[334712751,1723497044361,-150.0,0.00014662,2]
[334712753,1723497044371,-150.0,0.00014693,2]
[334712755,1723497044381,-176.66,0.00014728,2]
[334712757,1723497044390,-150.0,0.00014729,2]
[334712759,1723497044400,-150.0,0.00014741,2]
[334712761,1723497044409,-5113.0,0.00014744,2]
[334712763,1723497044420,-426.17811518,0.00014791,2]
[334712765,1723497044429,-3000.0,0.0001482,2]
[334712767,1723497044439,-723.87947696,0.00014832,2]
[334712769,1723497044448,-150.0,0.00014886,2]
[334712771,1723497044458,-150.0,0.00014909,2]
[334712773,1723497044467,-426.17811518,0.00014941,2]
[334712775,1723497044477,-25558.64398018,0.00015,2]
[334712776,1723497044486,-14239.24950837,0.00015,2]
[334712777,1723497044495,-297.86677854,0.00015,2]
[334712778,1723497044504,-155.75542475,0.00015,2]
[334712779,1723497044513,-495.0,0.00015,2]
[334712780,1723497044522,-495.0,0.00015,2]
[334712781,1723497044532,-2000.0,0.00015,5]
[334712782,1723497044541,-1000.0,0.00015,4]
[334712783,1723497044551,-8361.0,0.00015,2]
[334712784,1723497044561,-995.76,0.00015,2]
[334712785,1723497044570,-301.66,0.00015,2]
[334712786,1723497044579,-150.0,0.00015,2]
[334712787,1723497044590,-151.0,0.00015,2]
[334712788,1723497044599,-1463.0,0.00015,2]
[334712789,1723497044608,-232.022168,0.00015,2]
[334712790,1723497044617,-420.580105,0.00015,2]
[334712791,1723497044626,-420.580105,0.00015,2]
[334712792,1723497044635,-152.899242,0.00015,2]
[334712793,1723497044645,-238.32673,0.00015,2]
[334712794,1723497044655,-334.350081,0.00015,2]
[334712795,1723497044665,-334.350081,0.00015,2]
[334712796,1723497044675,-200.0,0.00015,2]
[334712797,1723497044684,-151.0,0.00015,2]
[334712798,1723497044694,-277.593069,0.00015,2]
[334712799,1723497044704,-277.593069,0.00015,2]
[334712800,1723497044713,-151.0,0.00015,2]
[334712801,1723497044723,-151.0,0.00015,2]
[334712802,1723497044733,-151.0,0.00015,2]
[334712803,1723497044742,-151.0,0.00015,2]
[334712804,1723497044752,-168.598719,0.00015,2]
[334712805,1723497044760,-168.598719,0.00015,2]
[334712806,1723497044769,-151.0,0.00015,2]
[334712807,1723497044778,-5039.606966,0.00015,2]
[334712809,1723497044788,-211.966436,0.00015,2]
[334712811,1723497044798,-510.462519,0.00015,2]
[334712813,1723497044807,-5039.606966,0.00015,2]
[334712815,1723497044817,-1597.337465,0.00015,2]
[334712817,1723497044826,-510.462519,0.00015,2]
[334712819,1723497044835,-1597.337465,0.00015,2]
[334712821,1723497044846,-151.0,0.00015,2]
[334712823,1723497044855,-151.0,0.00015,2]
[334712825,1723497044864,-151.0,0.00015,2]
[334712827,1723497044874,-182.798897,0.00015,2]
[334712829,1723497044884,-151.0,0.00015,2]
[334712831,1723497044893,-151.0,0.00015,2]
[334712832,1723497044902,-426.88961,0.00015,2]
[334712834,1723497044911,-426.88961,0.00015,2]
[334712836,1723497044921,-151.0,0.00015,2]
[334712838,1723497044931,-151.0,0.00015,2]
[334712840,1723497044940,-151.0,0.00015,2]
[334712842,1723497044950,-151.0,0.00015,2]
[334712844,1723497044960,-151.0,0.00015,2]
[334712846,1723497044970,-168.684248,0.00015,2]
[334712848,1723497044979,-151.0,0.00015,2]
[334712850,1723497044988,-151.0,0.00015,2]
[334712852,1723497044998,-150.0,0.00015042,2]
[334712854,1723497045011,-256.06295204,0.0001505,2]
[334712856,1723497045021,-1747.41,0.00015068,2]
[334712858,1723497045031,-300.0,0.00015068,2]
[334712860,1723497045040,-2534.68772,0.00015068,2]
[334712861,1723497045050,-794.0,0.00015089,2]
[334712863,1723497045060,-794.0,0.00015089,2]
[334712865,1723497045070,-426.17811518,0.00015091,2]
[334712867,1723497045081,-500.0,0.000151,2]
[334712869,1723497045090,-196.4,0.00015111,2]
[334712871,1723497045100,-150.0,0.00015124,2]
[334712873,1723497045110,-305.2,0.00015151,2]
[334712875,1723497045120,-6827.67100574,0.00015151,2]
[334712877,1723497045130,-150.0,0.00015199,2]
[334712878,1723497045140,-438.4,0.00015223,2]
[334712879,1723497045150,-426.17811518,0.00015241,2]
[334712880,1723497045160,-150.0,0.00015291,2]
[334712881,1723497045170,-150.0,0.00015339,2]
[334712882,1723497045179,-561.6,0.00015349,2]
[334712883,1723497045188,-150.0,0.00015355,2]
[334712884,1723497045197,-200.0,0.00015367,2]
[334712885,1723497045208,-200.0,0.00015367,2]
[334712886,1723497045218,-150.0,0.00015367,2]
[334712887,1723497045228,-200.0,0.00015367,2]
[334712889,1723497045238,-624.39730877,0.00015369,2]
[334712891,1723497045248,-426.17811518,0.00015391,2]
[334712892,1723497045257,-3000.0,0.0001544,2]
[334712894,1723497045267,-2000.0,0.000155,2]
[334712896,1723497045277,-2000.0,0.000155,2]
[334712898,1723497045286,-2000.0,0.000155,2]
[334712900,1723497045296,-150.0,0.000155,3]
[334712902,1723497045306,-150.0,0.00015511,2]
[334712903,1723497045315,-426.17811518,0.00015541,2]
[334712904,1723497045324,-150.0,0.00015554,2]
[334712905,1723497045334,-150.0,0.00015668,2]
[334712906,1723497045344,-426.17811518,0.00015691,2]
[334712907,1723497045354,-1747.41,0.00015753,2]
[334712908,1723497045363,-150.0,0.0001577,2]
[334712909,1723497045372,-150.0,0.00015824,2]
[334712910,1723497045382,-163.1,0.00015831,2]
[334712911,1723497045391,-170.9,0.00015831,2]
[334712912,1723497045400,-167.0,0.00015831,2]
[334712913,1723497045410,-426.17811518,0.00015842,2]
[334712914,1723497045419,-150.0,0.00015842,2]
[334712915,1723497045428,-150.0,0.00015842,2]
[334712916,1723497045438,-199.19,0.00015847,2]
[334712917,1723497045447,-794.0,0.00015883,2]
[334712918,1723497045456,-794.0,0.00015883,2]
[334712919,1723497045465,-2534.68772,0.0001589,2]
[334712920,1723497045476,-250.0,0.00015915,2]
[334712921,1723497045485,-152.7,0.0001594,2]
[334712922,1723497045495,-160.0,0.00015965,2]
[334712923,1723497045504,-995.76,0.0001598,2]
[334712924,1723497045514,-150.0,0.00015981,2]
[334712925,1723497045524,-150.0,0.00015985,2]
[334712926,1723497045533,-426.17811518,0.00015992,2]
[334712927,1723497045543,-2000.0,0.00016,7]
[334712928,1723497045552,-700.0,0.00016,2]
[334712929,1723497045562,-150.0,0.00016,3]
[334712930,1723497045572,-2000.0,0.00016,2]
[334712931,1723497045581,-2000.0,0.0001601,2]
[334712932,1723497045590,-2000.0,0.0001602,2]
[334712933,1723497045600,-2779.787221,0.0001603,2]
[334712934,1723497045609,-477.99858934,0.00016037,2]
[334712938,1723497045780,-1670.0,0.0001604,2]
[334712939,1723497045789,-835.34,0.0001604,2]
[334712940,1723497045799,-480.37,0.0001604,2]
[334712941,1723497045809,-421.01,0.0001604,2]
[334712942,1723497045818,-421.01,0.0001604,2]
[334712943,1723497045828,-421.01,0.0001604,2]
[334712944,1723497045838,-841.83,0.0001604,2]
[334712945,1723497045848,-420.56,0.0001604,2]
[334712946,1723497045857,-402.62,0.00016051,2]
[334712947,1723497045867,-9999.99,0.00016116,2]
[334712948,1723497045877,-150.0,0.00016137,2]
[334712949,1723497045886,-426.17811518,0.00016142,2]
[334712950,1723497045896,-150.0,0.000162,2]
[334712951,1723497045905,-155.00000028,0.00016232,2]
[334712952,1723497045915,-426.17811518,0.00016292,2]
[334712953,1723497045924,-150.0,0.00016293,2]
[334712954,1723497045934,-400.0,0.0001637,2]
[334712955,1723497045943,-151.0,0.0001637,2]
[334712956,1723497045953,-151.0,0.0001637,2]
[334712957,1723497045962,-151.0,0.0001637,2]
[334712958,1723497045972,-150.0,0.00016392,2]
[334712959,1723497045982,-150.0,0.00016416,2]
[334712960,1723497045992,-151.0,0.00016438,2]
[334712961,1723497046006,-151.0,0.00016438,2]
[334712962,1723497046016,-151.0,0.00016438,2]
[334712963,1723497046026,-363.764169,0.00016438,2]
[334712964,1723497046036,-363.764169,0.00016438,2]
[334712965,1723497046047,-151.0,0.00016438,2]
[334712966,1723497046056,-2000.0,0.00016438,2]
[334712967,1723497046066,-1747.41,0.00016438,2]
[334712968,1723497046076,-300.0,0.00016438,2]
[334712969,1723497046089,-426.17811518,0.00016442,2]
[334712970,1723497046099,-150.0,0.0001645,2]
[334712971,1723497046109,-350.0,0.00016463,2]
[334712972,1723497046119,-554.4,0.000165,2]
[334712973,1723497046129,-554.4,0.000165,2]
[334712974,1723497046139,-554.399999,0.000165,2]
[334712975,1723497046149,-150.0,0.000165,4]
[334712976,1723497046159,-301.66,0.00016525,2]
[334712977,1723497046168,-426.17811518,0.00016592,2]
[334712978,1723497046178,-1764.26747634,0.00016604,2]
[334712979,1723497046187,-150.0,0.00016606,2]
[334712980,1723497046197,-438.4,0.00016606,2]
[334712981,1723497046207,-151.0,0.00016631,2]
[334712982,1723497046217,-150.0,0.00016631,2]
[334712983,1723497046226,-290.46629205,0.00016691,7]
[334712984,1723497046237,-6827.67100574,0.00016692,2]
[334712985,1723497046247,-167.0,0.00016702,2]
[334712986,1723497046256,-2000.0,0.00016712,2]
[334712987,1723497046265,-2534.68772,0.00016712,2]
[334712988,1723497046275,-176.28,0.00016712,2]
[334712989,1723497046284,-476.526216,0.00016719,2]
[334712990,1723497046293,-476.526216,0.00016719,2]
[334712991,1723497046302,-151.0,0.00016719,2]
[334712992,1723497046312,-794.0,0.00016719,2]
[334712993,1723497046321,-794.0,0.00016719,2]
[334712994,1723497046331,-400.0,0.00016737,2]
[334712995,1723497046340,-400.0,0.00016737,2]
[334712996,1723497046350,-400.0,0.00016737,2]
[334712997,1723497046359,-333.88673149,0.00016741,2]
[334712998,1723497046369,-426.17811518,0.00016742,2]
[334712999,1723497046379,-561.6,0.00016744,2]
[334713000,1723497046388,-723.87947696,0.00016745,2]
[334713001,1723497046397,-150.0,0.00016763,2]
[334713002,1723497046406,-150.0,0.00016785,2]
[334713003,1723497046415,-277.454394,0.00016789,2]
[334713004,1723497046424,-277.454394,0.00016789,2]
[334713005,1723497046434,-151.0,0.00016789,2]
[334713006,1723497046443,-151.0,0.00016789,2]
[334713007,1723497046452,-1774.56,0.000168,7]
[334713008,1723497046462,-150.0,0.00016846,2]
[334713009,1723497046471,-426.17811518,0.00016892,2]
[334713010,1723497046480,-1536.47302737,0.000169,2]
[334713011,1723497046489,-150.0,0.00016919,2]
[334713012,1723497046498,-150.0,0.00016942,2]
[334713013,1723497046508,-995.76,0.0001696,2]
[334713014,1723497046517,-2000.0,0.00016986,2]
[334713015,1723497046527,-613.04,0.00016986,2]
[334713016,1723497046536,-151.0,0.00016999,2]
[334713017,1723497046545,-151.0,0.00016999,2]
[334713018,1723497046555,-2000.0,0.00017,7]
[334713019,1723497046564,-151.0,0.00017,2]
[334713020,1723497046574,-151.0,0.00017,2]
[334713021,1723497046585,-151.0,0.00017,2]
[334713022,1723497046596,-151.0,0.00017,2]
[334713023,1723497046606,-151.0,0.00017,2]
[334713024,1723497046615,-178.673924,0.00017,2]
[334713025,1723497046625,-151.0,0.00017,2]
[334713026,1723497046634,-151.0,0.00017,2]
[334713027,1723497046643,-151.0,0.00017,2]
[334713028,1723497046653,-151.0,0.00017,2]
[334713029,1723497046662,-151.0,0.00017,2]
[334713030,1723497046671,-151.0,0.00017,2]
[334713031,1723497046680,-151.0,0.00017,2]
[334713032,1723497046689,-151.0,0.00017,2]
[334713033,1723497046698,-264.499066,0.00017,2]
[334713034,1723497046707,-264.499066,0.00017,2]
[334713035,1723497046717,-255.459163,0.00017,2]
[334713036,1723497046726,-151.0,0.00017,2]
[334713037,1723497046735,-255.459163,0.00017,2]
[334713038,1723497046745,-151.0,0.00017,2]
[334713039,1723497046754,-161.36575,0.00017,2]
[334713040,1723497046763,-312.110361,0.00017,2]
[334713041,1723497046772,-161.36575,0.00017,2]
[334713042,1723497046781,-312.110361,0.00017,2]
[334713043,1723497046791,-151.0,0.00017,2]
[334713044,1723497046799,-151.0,0.00017,2]
[334713045,1723497046808,-153.537472,0.00017,2]
[334713046,1723497046817,-151.0,0.00017,2]
[334713047,1723497046827,-392.168585,0.00017,2]
[334713048,1723497046836,-392.168585,0.00017,2]
[334713049,1723497046847,-150.0,0.00017,4]
[334713050,1723497046857,-450.0,0.00017011,2]
[334713051,1723497046866,-426.17811518,0.00017042,2]
[334713052,1723497046875,-150.0,0.00017062,2]
[334713053,1723497046884,-150.0,0.00017075,2]
[334713054,1723497046894,-426.17811518,0.00017192,2]
[334713055,1723497046903,-150.0,0.00017232,2]
[334713056,1723497046912,-2000.0,0.0001726,2]
[334713057,1723497046921,-150.0,0.00017277,2]
[334713058,1723497046931,-9826.19315936,0.00017316,2]
[334713059,1723497046940,-426.17811518,0.00017342,2]
[334713060,1723497046949,-151.0,0.00017359,2]
[334713061,1723497046958,-1406.13177639,0.0001738,2]
[334713062,1723497046967,-150.0,0.00017388,2]
[334713063,1723497046977,-160.0,0.00017416,2]
[334713064,1723497046986,-426.17811518,0.00017492,2]
[334713065,1723497046995,-150.0,0.00017492,2]
[334713066,1723497047008,-150.0,0.00017492,2]
[334713067,1723497047017,-150.0,0.00017492,2]
[334713068,1723497047027,-150.0,0.00017492,2]
[334713069,1723497047036,-150.0,0.000175,5]
[334713070,1723497047046,-2000.0,0.00017534,2]
[334713071,1723497047055,-513.55,0.00017534,2]
[334713072,1723497047065,-2534.68772,0.00017534,2]
[334713073,1723497047074,-151.0,0.0001754,2]
[334713074,1723497047087,-151.0,0.0001754,2]
[334713075,1723497047097,-277.593069,0.0001754,2]
[334713076,1723497047107,-277.593069,0.0001754,2]
[334713077,1723497047116,-151.0,0.0001754,2]
[334713078,1723497047125,-151.0,0.0001754,2]
[334713079,1723497047135,-151.0,0.0001754,2]
[334713080,1723497047144,-168.598719,0.0001754,2]
[334713081,1723497047153,-168.598719,0.0001754,2]
[334713082,1723497047163,-1597.337465,0.0001754,2]
[334713083,1723497047172,-1597.337465,0.0001754,2]
[334713084,1723497047181,-150.0,0.00017544,2]
[334713085,1723497047191,-550.0,0.00017558,2]
[334713086,1723497047200,-167.0,0.00017573,2]
[334713087,1723497047209,-151.0,0.00017573,2]
[334713088,1723497047218,-151.0,0.00017573,2]
[334713089,1723497047227,-5039.606966,0.00017573,2]
[334713090,1723497047237,-5039.606966,0.00017573,2]
[334713091,1723497047246,-151.0,0.00017573,2]
[334713092,1723497047255,-794.0,0.00017599,2]
[334713093,1723497047263,-794.0,0.00017599,2]
[334713094,1723497047273,-426.17811518,0.00017642,2]
[334713095,1723497047282,-150.0,0.00017701,2]
[334713096,1723497047291,-150.0,0.00017708,2]
[334713097,1723497047300,-2332.64,0.00017728,2]
[334713098,1723497047309,-426.17811518,0.00017792,2]
[334713099,1723497047318,-71416.28881118,0.000178,2]
[334713100,1723497047327,-2000.0,0.00017808,2]
[334713101,1723497047336,-150.0,0.00017857,2]
[334713102,1723497047347,-151.0,0.000179,2]
[334713103,1723497047357,-420.580105,0.000179,2]
[334713104,1723497047366,-420.580105,0.000179,2]
[334713105,1723497047375,-334.350081,0.000179,2]
[334713106,1723497047384,-334.350081,0.000179,2]
[334713107,1723497047394,-151.0,0.000179,2]
[334713108,1723497047403,-510.462519,0.000179,2]
[334713109,1723497047412,-510.462519,0.000179,2]
[334713110,1723497047421,-151.0,0.000179,2]
[334713111,1723497047430,-215.16299926,0.000179,2]
[334713112,1723497047440,-473.69612874,0.000179,3]
[334713113,1723497047449,-150.0,0.00017923,2]
[334713114,1723497047458,-995.76,0.0001794,2]
[334713115,1723497047467,-426.17811518,0.00017943,2]
[334713116,1723497047477,-835.34,0.00017952,2]
[334713117,1723497047486,-835.34,0.00017952,2]
[334713118,1723497047495,-150.0,0.00017973,2]
[334713119,1723497047504,-676.39400393,0.00018,2]
[334713120,1723497047513,-308.28352676,0.00018,2]
[334713121,1723497047522,-665.89467279,0.00018,30]
[334713122,1723497047531,-250000.0,0.00018,2]
[334713123,1723497047540,-741.77,0.00018,9]
[334713124,1723497047549,-750.0,0.00018,2]
[334713125,1723497047558,-268.087017,0.00018,2]
[334713126,1723497047567,-151.0,0.00018,2]
[334713127,1723497047576,-151.0,0.00018,2]
[334713128,1723497047584,-151.0,0.00018,2]
[334713129,1723497047596,-155.0,0.00018,2]
[334713130,1723497047606,-151.0,0.00018,2]
[334713131,1723497047615,-151.0,0.00018,2]
[334713132,1723497047624,-151.0,0.00018,2]
[334713133,1723497047633,-151.0,0.00018,2]
[334713134,1723497047642,-264.499066,0.00018,2]
[334713135,1723497047651,-264.499066,0.00018,2]
[334713136,1723497047660,-255.459163,0.00018,2]
[334713137,1723497047669,-151.0,0.00018,2]
[334713138,1723497047678,-255.459163,0.00018,2]
[334713139,1723497047687,-151.0,0.00018,2]
[334713140,1723497047696,-161.36575,0.00018,2]
[334713141,1723497047705,-312.110361,0.00018,2]
[334713142,1723497047714,-161.36575,0.00018,2]
[334713143,1723497047723,-312.110361,0.00018,2]
[334713144,1723497047732,-151.0,0.00018,2]
[334713145,1723497047742,-151.0,0.00018,2]
[334713146,1723497047751,-151.0,0.00018,2]
[334713147,1723497047761,-277.454394,0.00018,2]
[334713148,1723497047772,-277.454394,0.00018,2]
[334713149,1723497047781,-392.168585,0.00018,2]
[334713150,1723497047790,-151.0,0.00018,2]